bitfinex/quotes_BTCUSD_20240821
["timestamp","ask_amount","ask_price","bid_price","bid_amount"]
[1724235989594,0.006,59421.0,59419.0,0.05024494]
[1724235990209,0.0611,59423.0,59419.0,0.05024494]
[1724235990424,0.0691,59423.0,59419.0,0.05024494]
[1724235991032,0.0701,59423.0,59419.0,0.05024494]
[1724235991446,0.0611,59423.0,59419.0,0.05024494]
[1724235991648,0.0701,59423.0,59419.0,0.05024494]
[1724235992486,0.006,59421.0,59419.0,0.05024494]
[1724235992894,0.0701,59423.0,59419.0,0.05024494]
[1724235993306,0.0781,59423.0,59420.0,0.05024494]
[1724235993805,0.0781,59423.0,59421.0,0.05024494]
[1724235993806,0.017,59423.0,59421.0,0.05024494]
[1724235994012,0.017,59423.0,59420.0,0.05024494]
[1724235994447,0.0799,59421.0,59420.0,0.05024494]
[1724235994654,0.1491,59421.0,59420.0,0.05024494]
[1724235995064,0.1431,59421.0,59420.0,0.05032783]
[1724235995924,0.1431,59419.0,59417.0,0.05032783]
[1724235996320,0.311396,59419.0,59417.0,0.05032783]
[1724235996749,0.1431,59419.0,59417.0,0.05032783]
[1724235996961,0.1431,59419.0,59416.0,0.05032783]
[1724235997169,0.1431,59419.0,59415.0,0.05123093]
[1724235997578,0.1431,59419.0,59415.0,0.0512399]
[1724235997783,0.1511,59419.0,59415.0,0.0512399]
[1724235998204,0.1471,59419.0,59417.0,0.0503368]
[1724235998457,0.1471,59419.0,59416.0,0.0503368]
[1724235998648,0.1511,59419.0,59416.0,0.0503368]
[1724235999074,0.1471,59419.0,59416.0,0.0503368]
[1724235999491,0.1511,59419.0,59416.0,0.0503368]
[1724235999913,0.1511,59419.0,59417.0,0.05033217]
[1724236000119,0.1471,59419.0,59417.0,0.05033217]
[1724236000474,0.1511,59419.0,59416.0,0.05033217]
[1724236000703,0.1511,59419.0,59417.0,0.05033217]
[1724236000914,0.1431,59419.0,59416.0,0.05033217]
[1724236001359,0.1471,59419.0,59416.0,0.05033217]
[1724236002097,0.1431,59419.0,59416.0,0.05033217]
[1724236002305,0.1471,59419.0,59416.0,0.05033217]
[1724236002730,0.1431,59419.0,59416.0,0.05033217]
[1724236003133,0.1471,59419.0,59416.0,0.05033217]
[1724236003462,0.1511,59419.0,59417.0,0.01873084]
[1724236004313,0.1471,59419.0,59417.0,0.01873084]
[1724236004526,0.1511,59419.0,59417.0,0.01873084]
[1724236005154,0.1511,59419.0,59417.0,0.06905929]
[1724236005155,0.1471,59419.0,59417.0,0.06905929]
[1724236005366,0.1471,59419.0,59417.0,0.0690564]
[1724236005572,0.1511,59419.0,59417.0,0.0690564]
[1724236005993,0.1511,59419.0,59417.0,0.01873084]
[1724236006417,0.1511,59419.0,59415.0,0.05122866]
[1724236006617,0.1511,59419.0,59418.0,0.01872973]
[1724236006820,0.1511,59419.0,59415.0,0.05122866]
[1724236007031,0.1511,59419.0,59418.0,0.01872973]
[1724236007266,0.1511,59419.0,59415.0,0.05122866]
[1724236007477,0.1471,59419.0,59418.0,0.01872973]
[1724236007692,0.1471,59419.0,59415.0,0.05122866]
[1724236007693,0.504913,59416.0,59415.0,0.05122866]
[1724236007915,1.62283398,59416.0,59415.0,0.0009031]
[1724236008139,1.62383398,59416.0,59415.0,0.0009031]
[1724236008364,1.91615238,59416.0,59415.0,0.0009031]
[1724236009741,2.25276138,59416.0,59415.0,0.0009031]
[1724236009958,2.25976138,59416.0,59415.0,0.0009031]
[1724236010368,2.25276138,59416.0,59415.0,0.0009031]
[1724236010578,2.26676138,59416.0,59415.0,0.0009031]
[1724236010785,2.27876138,59416.0,59415.0,0.0009031]
[1724236010999,2.26676138,59416.0,59415.0,0.0009031]
[1724236011459,2.1167826,59416.0,59415.0,0.0009031]
[1724236011669,2.1027826,59416.0,59415.0,0.0009031]
[1724236011878,2.0907826,59416.0,59415.0,0.0009031]
[1724236012296,2.1047826,59416.0,59415.0,0.0009031]
[1724236012719,2.0907826,59416.0,59415.0,0.0009031]
[1724236012934,2.1047826,59416.0,59415.0,0.0009031]
[1724236013144,2.1187826,59416.0,59415.0,0.0009031]
[1724236013345,2.1047826,59416.0,59415.0,0.0009031]
[1724236013764,2.1187826,59416.0,59415.0,0.0009031]
[1724236013968,2.28276138,59416.0,59415.0,0.0009031]
[1724236017497,2.1187826,59416.0,59415.0,0.0009031]
[1724236023075,2.1147826,59416.0,59415.0,0.0009031]
[1724236023282,1.96984298,59416.0,59415.0,0.0009031]
[1724236023762,1.97084298,59416.0,59415.0,0.0009031]
[1724236024384,2.08844298,59416.0,59415.0,0.0009031]
[1724236025009,2.08744298,59416.0,59415.0,0.0009031]
[1724236025888,1.75083398,59416.0,59415.0,0.0009031]
[1724236027380,1.91581276,59416.0,59415.0,0.0009031]
[1724236027593,1.94215703,59416.0,59415.0,0.0009031]
[1724236027800,1.77817825,59416.0,59415.0,0.0009031]
[1724236028038,1.75183398,59416.0,59415.0,0.0009031]
[1724236028249,1.75383398,59416.0,59415.0,0.0009031]
[1724236028681,1.78017816,59416.0,59415.0,0.0009031]
[1724236029793,1.75383398,59416.0,59415.0,0.0009031]
[1724236030050,1.78017822,59416.0,59415.0,0.0009031]
[1724236030884,1.944157,59416.0,59415.0,0.0009031]
[1724236032597,1.78017822,59416.0,59415.0,0.0009031]
[1724236034314,2.11678722,59416.0,59415.0,0.0009031]
[1724236035590,2.11778722,59416.0,59415.0,0.0009031]
[1724236035800,2.11878722,59416.0,59415.0,0.0009031]
[1724236036205,2.45539622,59416.0,59415.0,0.0009031]
[1724236036478,2.619375,59416.0,59415.0,0.0009031]
[1724236038406,2.620197,59416.0,59415.0,0.0009031]
[1724236040153,2.592197,59416.0,59415.0,0.0009031]
[1724236040352,2.606197,59416.0,59415.0,0.0009031]
[1724236040572,2.620197,59416.0,59415.0,0.0009031]
[1724236044861,2.606197,59416.0,59415.0,0.0009031]
[1724236045331,2.620197,59416.0,59415.0,0.0009031]
[1724236046365,2.606197,59416.0,59415.0,0.0009031]
[1724236046810,2.620197,59416.0,59415.0,0.0009031]
[1724236048725,0.959322,59402.0,59401.0,0.0765188]
[1724236048944,1.17266922,59402.0,59401.0,0.0765188]
[1724236049228,1.17266922,59402.0,59401.0,0.1392188]
[1724236049229,1.39175822,59402.0,59401.0,0.1392188]
[1724236049440,1.36541398,59402.0,59401.0,0.1392188]
[1724236050058,1.37941398,59402.0,59401.0,0.1392188]
[1724236050278,1.3919144,59402.0,59401.0,0.1392188]
[1724236050484,1.4059144,59402.0,59401.0,0.1392188]
[1724236051223,1.4059144,59402.0,59401.0,0.140123]
[1724236052589,1.43225978,59402.0,59401.0,0.140123]
[1724236053470,0.04050042,59402.0,59401.0,0.140123]
[1724236053678,0.028,59402.0,59401.0,0.140123]
[1724236053885,0.028,59402.0,59401.0,0.21773906]
[1724236054093,0.028,59402.0,59401.0,0.16736375]
[1724236054346,0.028,59402.0,59401.0,0.21773906]
[1724236054553,0.014,59402.0,59401.0,0.21773906]
[1724236054755,0.168336,59405.0,59401.0,0.21773906]
[1724236054756,0.168336,59405.0,59402.0,0.1464]
[1724236054960,0.168336,59405.0,59404.0,0.0798]
[1724236055170,0.191336,59405.0,59404.0,0.0798]
[1724236055613,0.20409868,59405.0,59404.0,0.10703608]
[1724236056457,0.20409868,59405.0,59404.0,0.16953608]
[1724236056980,0.01276268,59405.0,59404.0,0.16953608]
[1724236057191,0.02639782,59408.0,59405.0,0.1396]
[1724236057192,0.19472582,59408.0,59405.0,0.1396]
[1724236057402,0.16833,59407.0,59406.0,0.0771]
[1724236057617,0.28593,59407.0,59406.0,0.10433297]
[1724236059158,0.28593,59407.0,59406.0,0.17003297]
[1724236059372,0.16833,59407.0,59406.0,0.17003297]
[1724236060202,0.18133,59407.0,59406.0,0.17003297]
[1724236060413,0.19433,59407.0,59406.0,0.17003297]
[1724236062162,0.19433,59407.0,59406.0,0.1428]
[1724236062337,0.19433,59407.0,59406.0,0.17003297]
[1724236063800,0.195152,59407.0,59406.0,0.17003297]
[1724236066816,0.531812,59407.0,59406.0,0.17003297]
[1724236068142,0.531812,59407.0,59406.0,0.10433297]
[1724236069733,0.531812,59407.0,59406.0,0.02723297]
[1724236069734,1.17417498,59407.0,59406.0,0.02723297]
[1724236069951,1.17417498,59407.0,59401.0,0.05129662]
[1724236069952,0.168344,59402.0,59401.0,0.0009042]
[1724236070306,0.505033,59402.0,59401.0,0.0009042]
[1724236072243,0.512033,59402.0,59401.0,0.0009042]
[1724236072710,0.848722,59402.0,59401.0,0.0009042]
[1724236073122,0.855722,59402.0,59401.0,0.0009042]
[1724236075165,0.86800566,59402.0,59401.0,0.0009042]
[1724236076577,0.86800566,59402.0,59401.0,0.1445042]
[1724236076930,0.519033,59402.0,59401.0,0.1445042]
[1724236077749,0.51883038,59402.0,59401.0,0.1445042]
[1724236079976,0.18214138,59402.0,59401.0,0.1445042]
[1724236080186,0.014,59402.0,59401.0,0.1445042]
[1724236080418,0.014,59402.0,59401.0,0.22209386]
[1724236082180,0.014,59402.0,59401.0,0.17173111]
[1724236085133,0.014,59402.0,59401.0,0.22209386]
[1724236086692,0.014,59402.0,59401.0,0.17173111]
[1724236086893,0.014,59402.0,59401.0,0.02813111]
[1724236087097,0.182344,59402.0,59401.0,0.02813111]
[1724236089397,0.183166,59402.0,59401.0,0.02813111]
[1724236090194,0.183166,59402.0,59401.0,0.11003111]
[1724236093979,0.183166,59402.0,59401.0,0.22698622]
[1724236093980,0.014822,59402.0,59401.0,0.22698622]
[1724236094988,0.00896093,59402.0,59401.0,0.17663111]
[1724236096513,0.00896093,59402.0,59401.0,0.25216378]
[1724236096915,0.00896093,59402.0,59401.0,0.6255666]
[1724236097339,0.00896093,59402.0,59401.0,0.62556956]
[1724236098739,0.00896093,59402.0,59401.0,0.55003346]
[1724236104789,0.00896093,59402.0,59401.0,0.5589804]
[1724236105051,0.00896093,59402.0,59401.0,0.18557805]
[1724236105228,0.00896093,59402.0,59401.0,0.11003111]
[1724236108463,0.00896093,59402.0,59401.0,0.02813111]
[1724236109454,0.00896093,59402.0,59401.0,0.47707966]
[1724236111282,0.00896093,59402.0,59401.0,0.02813111]
[1724236111480,0.00896093,59402.0,59401.0,0.07850398]
[1724236111707,0.00896093,59402.0,59401.0,0.02813111]
[1724236111907,0.17730493,59402.0,59401.0,0.07850398]
[1724236112159,0.17730493,59402.0,59401.0,0.02813111]
[1724236112766,0.29490493,59402.0,59401.0,0.02813111]
[1724236113408,0.17730493,59402.0,59401.0,0.02813111]
[1724236114720,0.18970531,59402.0,59401.0,0.02813111]
[1724236115153,0.52639431,59402.0,59401.0,0.02813111]
[1724236117039,0.02136131,59402.0,59401.0,0.02813111]
[1724236117369,0.17730493,59402.0,59401.0,0.02813111]
[1724236122101,0.17730493,59402.0,59401.0,0.07851566]
[1724236122313,0.17730493,59402.0,59401.0,0.02813111]
[1724236122729,0.17730493,59402.0,59401.0,0.07851566]
[1724236124000,0.17718386,59402.0,59401.0,0.07851566]
[1724236129088,0.51387286,59402.0,59401.0,0.02813111]
[1724236129913,0.51387286,59402.0,59401.0,0.07851566]
[1724236130124,0.51387286,59402.0,59401.0,0.02813111]
[1724236130384,0.51387286,59402.0,59401.0,0.07851566]
[1724236130592,0.51387286,59402.0,59401.0,0.02813111]
[1724236130999,0.00883986,59402.0,59401.0,0.21761566]
[1724236131212,0.00883986,59402.0,59401.0,0.16723111]
[1724236131441,0.00883986,59402.0,59401.0,0.61623503]
[1724236131886,0.00883986,59402.0,59401.0,0.54064478]
[1724236132295,0.00883986,59402.0,59401.0,0.61622604]
[1724236136184,0.00883986,59402.0,59401.0,0.54064478]
[1724236137117,0.00883986,59402.0,59401.0,0.61622517]
[1724236137331,0.00883986,59402.0,59401.0,0.55412517]
[1724236138436,0.00883986,59402.0,59401.0,0.47854478]
[1724236141038,0.00883986,59402.0,59401.0,0.54404478]
[1724236141248,0.00883986,59402.0,59401.0,0.67000616]
[1724236141463,0.00883986,59402.0,59401.0,0.54404478]
[1724236142324,0.00883986,59402.0,59401.0,0.66164478]
[1724236142750,0.00183986,59402.0,59401.0,0.66164478]
[1724236142962,0.000822,59402.0,59401.0,0.66164478]
[1724236143173,0.001822,59402.0,59401.0,0.66364478]
[1724236144284,0.002822,59402.0,59401.0,0.55104478]
[1724236145415,0.002822,59402.0,59401.0,0.67683953]
[1724236146919,0.002822,59402.0,59401.0,0.79443953]
[1724236148402,0.002822,59402.0,59401.0,0.67683953]
[1724236148634,0.002822,59402.0,59401.0,0.67680166]
[1724236149675,0.002822,59402.0,59401.0,0.67680166]
[1724236151201,0.002822,59402.0,59401.0,0.61130166]
[1724236151590,0.002822,59402.0,59401.0,0.48549899]
[1724236153316,0.002822,59402.0,59401.0,0.54569899]
[1724236154405,0.002822,59402.0,59401.0,0.66329899]
[1724236155863,0.002822,59402.0,59401.0,0.78910166]
[1724236156503,0.002822,59402.0,59401.0,0.66329899]
[1724236158369,0.002822,59402.0,59401.0,0.66329671]
[1724236160518,0.00261939,59402.0,59401.0,0.66329671]
[1724236162004,0.00261939,59402.0,59401.0,0.7891022]
[1724236162207,0.00261939,59402.0,59401.0,0.66329671]
[1724236163246,0.06190598,59415.0,59407.0,0.0832]
[1724236163451,0.06190598,59415.0,59407.0,0.13351069]
[1724236163654,0.06190598,59415.0,59408.0,0.02717559]
[1724236164310,0.07450199,59415.0,59408.0,0.02717559]
[1724236164739,0.08450199,59415.0,59408.0,0.02717559]
[1724236165161,0.09350199,59415.0,59408.0,0.02717559]
[1724236165363,0.26180899,59415.0,59408.0,0.02717559]
[1724236165994,0.0798,59414.0,59408.0,0.02717559]
[1724236166207,0.0615,59413.0,59408.0,0.02717559]
[1724236166471,0.359632,59412.0,59408.0,0.001]
[1724236166679,0.649564,59410.0,59409.0,0.02716893]
[1724236166888,0.649564,59410.0,59405.0,0.05030876]
[1724236166889,0.0626,59408.0,59405.0,0.05030876]
[1724236167118,0.230928,59408.0,59405.0,0.05030876]
[1724236167336,0.230928,59408.0,59406.0,0.02717564]
[1724236167776,0.230928,59408.0,59404.0,0.05030876]
[1724236167777,0.0626,59408.0,59404.0,0.05030876]
[1724236167999,0.0626,59408.0,59407.0,0.02717409]
[1724236168205,0.0626,59408.0,59405.0,0.12610876]
[1724236168429,0.0626,59408.0,59405.0,0.05030876]
[1724236168637,0.0626,59408.0,59406.0,0.02717564]
[1724236169052,0.0636,59408.0,59406.0,0.02717564]
[1724236169478,0.0626,59408.0,59406.0,0.02717564]
[1724236169912,0.001,59408.0,59406.0,0.02717564]
[1724236170135,0.001,59408.0,59407.0,0.0766]
[1724236170361,0.002,59408.0,59407.0,0.18700876]
[1724236170570,0.001,59408.0,59407.0,0.16387409]
[1724236171016,0.001,59408.0,59407.0,0.21418285]
[1724236171226,0.002,59408.0,59407.0,0.61269523]
[1724236171441,0.18060076,59417.0,59407.0,0.53723209]
[1724236171681,0.18060076,59417.0,59409.0,0.05030973]
[1724236172096,0.18060076,59417.0,59410.0,0.0271606]
[1724236173453,0.023822,59416.0,59410.0,0.0271606]
[1724236174488,0.023822,59416.0,59410.0,0.07747033]
[1724236174929,0.030822,59416.0,59410.0,0.07847033]
[1724236175341,0.030822,59416.0,59410.0,0.0281606]
[1724236175564,0.030822,59416.0,59410.0,0.07847033]
[1724236176387,0.037822,59416.0,59410.0,0.07847033]
[1724236176875,0.03774498,59416.0,59410.0,0.07847033]
[1724236181577,0.03774498,59416.0,59411.0,0.05030973]
[1724236182033,0.03774498,59416.0,59412.0,0.02715033]
[1724236182695,0.03074498,59416.0,59412.0,0.02715033]
[1724236182908,0.02374498,59416.0,59412.0,0.02715033]
[1724236183115,0.19904998,59416.0,59412.0,0.02715033]
[1724236183319,0.20604998,59416.0,59412.0,0.02715033]
[1724236183524,0.19904998,59416.0,59412.0,0.02715033]
[1724236183729,0.20604998,59416.0,59412.0,0.02715033]
[1724236183944,0.1376,59413.0,59412.0,0.02715033]
[1724236184158,0.94714198,59413.0,59412.0,0.02715033]
[1724236184792,0.94714198,59413.0,59407.0,0.05032923]
[1724236184793,0.168319,59411.0,59409.0,0.0009042]
[1724236185631,0.78282898,59413.0,59409.0,0.0009042]
[1724236185632,0.32460298,59413.0,59409.0,0.0009042]
[1724236185839,0.023,59412.0,59409.0,0.0009042]
[1724236186049,0.001,59411.0,59409.0,0.05123343]
[1724236186687,0.002,59411.0,59409.0,0.05123343]
[1724236186896,0.001,59411.0,59409.0,0.05123343]
[1724236187106,0.001,59411.0,59409.0,0.05126662]
[1724236188836,0.002,59411.0,59409.0,0.05126662]
[1724236190337,0.002,59411.0,59410.0,0.05036242]
[1724236191192,0.001,59411.0,59410.0,0.05036242]
[1724236191400,0.023,59412.0,59410.0,0.05036242]
[1724236191625,0.002,59411.0,59410.0,0.05036242]
[1724236191837,0.002,59411.0,59410.0,0.05035897]
[1724236192483,0.001,59411.0,59410.0,0.05035897]
[1724236192907,0.001,59411.0,59410.0,0.44888091]
[1724236194368,0.002,59411.0,59410.0,0.44888091]
[1724236198670,0.002,59411.0,59410.0,0.4760391]
[1724236199579,0.002,59411.0,59410.0,0.7376391]
[1724236199775,0.002,59411.0,59410.0,1.33579866]
[1724236199986,0.002,59411.0,59410.0,1.18472173]
[1724236200191,0.002,59411.0,59410.0,1.22179933]
[1724236200619,0.001,59411.0,59410.0,1.22179933]
[1724236201036,0.001,59411.0,59410.0,1.22279933]
[1724236201460,0.00074498,59416.0,59411.0,0.1413]
[1724236201671,0.00074498,59416.0,59415.0,0.1176]
[1724236201889,0.00074498,59416.0,59415.0,0.63474245]
[1724236202103,0.00074498,59416.0,59415.0,0.57084245]
[1724236202562,0.00074498,59416.0,59415.0,0.57896734]
[1724236202771,0.00474498,59416.0,59415.0,0.57896734]
[1724236203006,0.00974498,59416.0,59415.0,0.57896734]
[1724236203225,0.00974498,59416.0,59415.0,0.45324245]
[1724236203699,0.00974498,59416.0,59415.0,0.55383553]
[1724236203913,0.00974498,59416.0,59415.0,0.45324245]
[1724236204122,0.00574498,59416.0,59415.0,0.45324245]
[1724236204348,0.00574498,59416.0,59415.0,0.67143553]
[1724236204764,0.00574498,59416.0,59415.0,0.55375295]
[1724236204974,0.00574498,59416.0,59415.0,0.45318416]
[1724236205188,0.00974498,59416.0,59415.0,0.45318416]
[1724236205643,0.00974498,59416.0,59415.0,0.52860571]
[1724236205865,0.00974498,59416.0,59415.0,0.44870571]
[1724236206090,0.00974498,59416.0,59415.0,0.05028269]
[1724236206537,0.00974498,59416.0,59414.0,0.05028269]
[1724236206750,0.00974498,59416.0,59414.0,0.12848269]
[1724236207389,0.00574498,59416.0,59414.0,0.12848269]
[1724236207599,0.00574498,59416.0,59415.0,0.05028269]
[1724236207812,0.00974498,59416.0,59415.0,0.05028269]
[1724236208444,0.00074498,59416.0,59415.0,0.05028269]
[1724236208888,0.00574498,59416.0,59415.0,0.05028269]
[1724236209099,0.00474498,59416.0,59415.0,0.05028269]
[1724236209505,0.00474498,59416.0,59415.0,0.0502619]
[1724236209506,0.00974498,59416.0,59415.0,0.0502619]
[1724236209715,0.00974498,59416.0,59414.0,0.1284619]
[1724236210356,0.00974498,59416.0,59414.0,0.0502619]
[1724236210768,0.1464,59415.0,59414.0,0.0502619]
[1724236211219,0.1464,59415.0,59413.0,0.0502619]
[1724236211849,0.15922095,59415.0,59413.0,0.0502619]
[1724236212053,0.16222095,59415.0,59413.0,0.0502619]
[1724236212515,0.15922095,59415.0,59413.0,0.0502619]
[1724236213814,0.1504,59415.0,59413.0,0.0502619]
[1724236214020,0.1534,59415.0,59413.0,0.0502619]
[1724236214654,0.007,59415.0,59413.0,0.2468619]
[1724236214845,0.007,59415.0,59414.0,0.0502619]
[1724236215957,0.004,59415.0,59414.0,0.0502619]
[1724236216163,0.00074498,59416.0,59414.0,0.0502619]
[1724236216369,0.004,59415.0,59414.0,0.0502619]
[1724236217233,0.003,59415.0,59414.0,0.0502619]
[1724236218075,0.003,59415.0,59414.0,0.07737732]
[1724236219181,0.007,59415.0,59414.0,0.07737732]
[1724236219630,0.007,59415.0,59414.0,0.5008908]
[1724236219857,0.007,59415.0,59414.0,0.54011802]
[1724236220072,0.007,59415.0,59414.0,0.66577277]
[1724236220297,0.007,59415.0,59414.0,0.54011802]
[1724236221638,0.004,59415.0,59414.0,0.54011802]
[1724236221856,0.004,59415.0,59414.0,0.704121]
[1724236222082,0.00074498,59416.0,59415.0,0.144]
[1724236222299,0.00074498,59416.0,59415.0,0.5206681]
[1724236222509,0.000822,59419.0,59415.0,0.5206681]
[1724236222510,0.000822,59419.0,59415.0,1.24112484]
[1724236222744,0.000822,59419.0,59418.0,0.26816784]
[1724236222958,0.000822,59419.0,59418.0,1.32112767]
[1724236223170,0.000822,59419.0,59418.0,2.39630473]
[1724236223607,0.000822,59419.0,59418.0,1.87374798]
[1724236223819,0.000822,59419.0,59418.0,2.39606505]
[1724236224043,0.000822,59419.0,59418.0,2.39906505]
[1724236224265,0.000822,59423.0,59421.0,0.001]
[1724236224484,0.000822,59423.0,59422.0,0.68506775]
[1724236224704,0.000822,59423.0,59422.0,1.18530382]
[1724236225611,0.000822,59423.0,59422.0,1.33557162]
[1724236226270,0.001822,59423.0,59422.0,1.33857162]
[1724236226478,0.000822,59425.0,59424.0,0.1453]
[1724236226703,0.000822,59425.0,59424.0,0.78584224]
[1724236226944,0.000822,59425.0,59424.0,0.81289106]
[1724236228085,0.000822,59425.0,59424.0,3.65409143]
[1724236228297,0.000822,59425.0,59424.0,3.69115238]
[1724236228509,0.001822,59425.0,59424.0,3.70015238]
[1724236228717,0.001822,59425.0,59424.0,3.8501198]
[1724236228944,0.002822,59425.0,59424.0,3.8541198]
[1724236230691,0.002822,59425.0,59424.0,3.70415238]
[1724236232260,0.000822,59428.0,59427.0,0.005]
[1724236232489,0.000822,59428.0,59427.0,2.83612129]
[1724236232698,0.000822,59428.0,59427.0,2.93612129]
[1724236232903,0.000822,59428.0,59427.0,2.96305924]
[1724236233115,0.000822,59428.0,59427.0,2.96298629]
[1724236233370,0.001822,59428.0,59427.0,2.97198629]
[1724236233583,0.002822,59428.0,59427.0,2.97598629]
[1724236234021,0.002822,59428.0,59427.0,2.97198629]
[1724236234233,0.06,59441.0,59429.0,0.001]
[1724236234452,0.06,59441.0,59432.0,0.049917]
[1724236234691,0.06,59441.0,59433.0,0.24130298]
[1724236235111,0.06,59441.0,59433.0,0.26822679]
[1724236235539,0.06,59441.0,59433.0,0.38582679]
[1724236236196,0.06,59441.0,59433.0,0.30852679]
[1724236236645,0.06,59441.0,59433.0,0.19092679]
[1724236237089,0.06,59441.0,59433.0,0.19892679]
[1724236237323,0.146222,59434.0,59433.0,0.03492381]
[1724236237539,0.146222,59434.0,59433.0,0.03092381]
[1724236237985,0.147222,59434.0,59433.0,0.03792381]
[1724236238404,0.147222,59434.0,59433.0,0.03392381]
[1724236238903,0.148222,59434.0,59433.0,0.04092381]
[1724236239125,0.650982,59434.0,59433.0,0.02692381]
[1724236239338,0.650982,59434.0,59433.0,0.004]
[1724236239553,0.650982,59434.0,59433.0,0.008]
[1724236239989,0.650982,59434.0,59433.0,0.004]
[1724236240204,0.650982,59434.0,59424.0,0.0009031]
[1724236240205,0.168257,59433.0,59424.0,0.0009031]
[1724236240424,0.1367,59432.0,59424.0,0.0009031]
[1724236241076,0.1367,59432.0,59425.0,0.02696452]
[1724236243043,0.1447,59431.0,59425.0,0.02696452]
[1724236243906,0.312176,59426.0,59425.0,0.02696452]
[1724236244120,0.648729,59426.0,59425.0,0.02696452]
[1724236244782,0.168279,59425.0,59424.0,0.0009031]
[1724236245030,0.305779,59425.0,59424.0,0.0009031]
[1724236245692,0.642337,59425.0,59424.0,0.0009031]
[1724236246121,0.650337,59425.0,59424.0,0.0019031]
[1724236247246,1.15089798,59425.0,59424.0,0.0019031]
[1724236247460,1.17489798,59425.0,59424.0,0.0019031]
[1724236247700,1.51145598,59425.0,59424.0,0.0019031]
[1724236247918,1.51227698,59425.0,59424.0,0.0019031]
[1724236248130,1.52027698,59425.0,59424.0,0.0029031]
[1724236248373,2.10541228,59425.0,59424.0,0.0029031]
[1724236248614,2.39121228,59425.0,59424.0,0.0019031]
[1724236248863,2.39321228,59425.0,59424.0,0.0019031]
[1724236249082,2.39921228,59425.0,59424.0,0.0019031]
[1724236249513,2.41221228,59425.0,59424.0,0.0019031]
[1724236249730,2.39821228,59425.0,59424.0,0.0009031]
[1724236249947,2.38521228,59425.0,59424.0,0.0009031]
[1724236250372,2.39921228,59425.0,59424.0,0.0009031]
[1724236251231,2.41321228,59425.0,59424.0,0.0009031]
[1724236251444,2.39921228,59425.0,59424.0,0.0009031]
[1724236251864,2.41321228,59425.0,59424.0,0.0009031]
[1724236252279,2.39921228,59425.0,59424.0,0.0009031]
[1724236252924,2.41321228,59425.0,59424.0,0.0009031]
[1724236253354,2.39921228,59425.0,59424.0,0.0009031]
[1724236254619,2.41321228,59425.0,59424.0,0.0009031]
[1724236264531,2.43960521,59425.0,59424.0,0.0009031]
[1724236270014,2.77616321,59425.0,59424.0,0.0009031]
[1724236271257,2.62958591,59425.0,59424.0,0.0009031]
[1724236272927,2.65592573,59425.0,59424.0,0.0009031]
[1724236276301,2.65572321,59425.0,59424.0,0.0009031]
[1724236277565,2.36192321,59425.0,59424.0,0.0009031]
[1724236284286,2.36866821,59425.0,59424.0,0.0009031]
[1724236284748,2.53264699,59425.0,59424.0,0.0009031]
[1724236286708,2.65034699,59425.0,59424.0,0.0009031]
[1724236287447,2.98690499,59425.0,59424.0,0.0009031]
[1724236287659,1.659967,59415.0,59409.0,0.0009042]
[1724236287867,2.25498858,59415.0,59409.0,0.0009042]
[1724236288504,2.28138466,59415.0,59409.0,0.0009042]
[1724236288920,2.61799966,59415.0,59409.0,0.0009042]
[1724236290166,2.63199966,59415.0,59409.0,0.0009042]
[1724236290373,2.64599966,59415.0,59409.0,0.0009042]
[1724236290593,2.63199966,59415.0,59409.0,0.0009042]
[1724236290803,2.63074517,59415.0,59409.0,0.0009042]
[1724236291030,2.65874517,59415.0,59409.0,0.0009042]
[1724236291237,1.90025139,59415.0,59409.0,0.0009042]
[1724236291451,1.90025139,59415.0,59414.0,0.0820042]
[1724236291666,1.89625139,59415.0,59414.0,0.0820042]
[1724236291885,1.89525139,59415.0,59414.0,0.0820042]
[1724236292806,1.45863639,59415.0,59414.0,0.0820042]
[1724236293246,1.4586937,59415.0,59414.0,0.0820042]
[1724236293667,1.4446937,59415.0,59414.0,0.0820042]
[1724236293873,1.4306937,59415.0,59414.0,0.0820042]
[1724236294084,1.4446937,59415.0,59414.0,0.0820042]
[1724236294301,1.4586937,59415.0,59414.0,0.1475042]
[1724236294522,1.1710787,59415.0,59414.0,0.1475042]
[1724236294736,1.14468157,59415.0,59414.0,0.1475042]
[1724236294950,1.17268157,59415.0,59414.0,0.1475042]
[1724236295811,1.19568157,59415.0,59414.0,0.1475042]
[1724236296685,0.85906657,59415.0,59414.0,0.1475042]
[1724236297541,1.19568157,59415.0,59414.0,0.1475042]
[1724236298660,0.85906657,59415.0,59414.0,0.1475042]
[1724236303625,1.19568157,59415.0,59414.0,0.1475042]
[1724236305154,1.19568157,59415.0,59414.0,0.0820042]
[1724236305577,1.19568157,59415.0,59414.0,0.0009042]
[1724236307768,1.19568157,59415.0,59414.0,0.0807042]
[1724236308906,1.34890953,59415.0,59414.0,0.0807042]
[1724236309527,1.19568157,59415.0,59414.0,0.0807042]
[1724236310845,1.19568157,59415.0,59414.0,0.0009042]
[1724236314335,1.19568157,59415.0,59414.0,0.0797042]
[1724236314543,0.05439608,59415.0,59414.0,0.1402042]
[1724236314968,0.05439608,59415.0,59414.0,0.16506923]
[1724236315813,0.04039608,59415.0,59414.0,0.16506923]
[1724236316023,0.02639608,59415.0,59414.0,0.16506923]
[1724236316232,0.03639608,59415.0,59414.0,0.16506923]
[1724236316442,0.04739608,59415.0,59414.0,0.16506923]
[1724236317746,0.021,59415.0,59414.0,0.80281988]
[1724236317977,0.000821,59425.0,59414.0,0.80281988]
[1724236317978,0.02721151,59424.0,59414.0,0.70235986]
[1724236318195,0.02721151,59424.0,59422.0,0.0799]
[1724236318407,0.02721151,59424.0,59423.0,0.16521908]
[1724236319277,0.02921151,59424.0,59423.0,0.16521908]
[1724236319487,0.02721151,59424.0,59423.0,0.16521908]
[1724236319926,0.03021151,59424.0,59423.0,0.16521908]
[1724236320399,0.03221151,59424.0,59423.0,0.16521908]
[1724236336006,0.03221151,59424.0,59423.0,0.1404]
[1724236336220,0.03221151,59424.0,59423.0,0.1651894]
[1724236336444,0.22349351,59424.0,59423.0,0.0247894]
[1724236336675,0.62065751,59424.0,59423.0,0.0247894]
[1724236336889,0.168287,59423.0,59416.0,0.0818]
[1724236337112,0.023,59422.0,59416.0,0.0818]
[1724236337365,0.023,59422.0,59417.0,0.02479873]
[1724236337583,0.191288,59422.0,59418.0,0.0818]
[1724236337799,0.023,59422.0,59418.0,0.0818]
[1724236338007,0.023,59423.0,59420.0,0.0818]
[1724236338209,0.02721151,59424.0,59423.0,0.001]
[1724236338210,0.03421151,59424.0,59423.0,0.001]